[Event "Live Chess"]
[Site "Chess.com"]
[Date "2023.05.20"]
[Round "-"]
[White "VovaOvchar1990"]
[Black "whitedjohn"]
[Result "0-1"]
[WhiteElo "1189"]
[BlackElo "1657"]
[TimeControl "300"]
[EndTime "10:19:53 PDT"]
[Termination "whitedjohn won by checkmate"]

1. e4 {[%clk 0:04:58.5]} 1... Nf6 {[%clk 0:04:55.6]} 2. Nc3 {[%clk 0:04:56.3]}
2... d5 {[%clk 0:04:53.3]} 3. exd5 {[%clk 0:04:55]} 3... Nxd5 {[%clk 0:04:51.4]}
4. Nxd5 {[%clk 0:04:54.9]} 4... Qxd5 {[%clk 0:04:49.7]} 5. Nf3 {[%clk
0:04:53.4]} 5... Bg4 {[%clk 0:04:48.5]} 6. Be2 {[%clk 0:04:50.5]} 6... Nc6
{[%clk 0:04:47.6]} 7. O-O {[%clk 0:04:48.6]} 7... O-O-O {[%clk 0:04:47]} 8. h3
{[%clk 0:04:47.2]} 8... Bh5 {[%clk 0:04:43.5]} 9. Nh2 {[%clk 0:04:44.1]} 9...
Bxe2 {[%clk 0:04:40.3]} 10. Qxe2 {[%clk 0:04:42.5]} 10... e5 {[%clk 0:04:38.8]}
11. Ng4 {[%clk 0:04:38.6]} 11... f5 {[%clk 0:04:30.7]} 12. Ne3 {[%clk
0:04:34.3]} 12... Qe6 {[%clk 0:04:25]} 13. d3 {[%clk 0:04:30.4]} 13... Nd4
{[%clk 0:04:21.5]} 14. Qd1 {[%clk 0:04:27.5]} 14... Bc5 {[%clk 0:04:14.6]} 15.
Nc4 {[%clk 0:04:19.3]} 15... e4 {[%clk 0:04:09.5]} 16. Be3 {[%clk 0:04:11.1]}
16... exd3 {[%clk 0:03:55.4]} 17. cxd3 {[%clk 0:04:01.1]} 17... Rhf8 {[%clk
0:03:51.8]} 18. b3 {[%clk 0:03:45.8]} 18... f4 {[%clk 0:03:48.9]} 19. Bxd4
{[%clk 0:03:26.6]} 19... Bxd4 {[%clk 0:03:46.1]} 20. Rc1 {[%clk 0:03:24.5]}
20... f3 {[%clk 0:03:44.1]} 21. Re1 {[%clk 0:02:24.5]} 21... Qg6 {[%clk
0:03:39.2]} 22. g3 {[%clk 0:02:17.3]} 22... Qxg3+ {[%clk 0:03:36.4]} 23. Kh1
{[%clk 0:01:45.9]} 23... Qg2# {[%clk 0:03:35]} 0-1

[Event "Live Chess"]
[Site "Chess.com"]
[Date "2023.05.20"]
[Round "-"]
[White "bristolunichess"]
[Black "therealab0ne"]
[Result "1-0"]
[WhiteElo "1840"]
[BlackElo "676"]
[TimeControl "300"]
[EndTime "10:19:57 PDT"]
[Termination "bristolunichess won by resignation"]

1. e4 {[%clk 0:04:55.3]} 1... c5 {[%clk 0:04:55.5]} 2. d4 {[%clk 0:04:54.3]}
2... cxd4 {[%clk 0:04:53.8]} 3. c3 {[%clk 0:04:53.7]} 3... e5 {[%clk 0:04:45.6]}
4. cxd4 {[%clk 0:04:32.3]} 4... exd4 {[%clk 0:04:42.6]} 5. Qxd4 {[%clk
0:04:23.4]} 5... Nc6 {[%clk 0:04:41.5]} 6. Qe3 {[%clk 0:04:20.7]} 6... d6 {[%clk
0:04:36.2]} 7. Bc4 {[%clk 0:04:17.4]} 7... Nf6 {[%clk 0:04:11.3]} 8. h3 {[%clk
0:04:11.5]} 8... d5 {[%clk 0:04:10.3]} 9. exd5+ {[%clk 0:04:07.3]} 9... Be7
{[%clk 0:04:03.7]} 10. dxc6 {[%clk 0:04:01.9]} 10... bxc6 {[%clk 0:04:02]} 11.
Nf3 {[%clk 0:03:57.9]} 11... Kf8 {[%clk 0:03:54.1]} 1-0

[Event "Live Chess"]
[Site "Chess.com"]
[Date "2023.05.20"]
[Round "-"]
[White "TheSmoulderingMaster"]
[Black "OBrightwell100"]
[Result "1-0"]
[WhiteElo "1789"]
[BlackElo "1299"]
[TimeControl "300"]
[EndTime "10:20:00 PDT"]
[Termination "TheSmoulderingMaster won by checkmate"]

1. e4 {[%clk 0:04:59.2]} 1... e5 {[%clk 0:04:58.6]} 2. Nf3 {[%clk 0:04:57.7]}
2... Nc6 {[%clk 0:04:56.8]} 3. Bb5 {[%clk 0:04:56.8]} 3... a6 {[%clk 0:04:55.6]}
4. Ba4 {[%clk 0:04:55.4]} 4... b5 {[%clk 0:04:54.6]} 5. Bb3 {[%clk 0:04:54.6]}
5... Nf6 {[%clk 0:04:54.3]} 6. O-O {[%clk 0:04:53.3]} 6... Bc5 {[%clk
0:04:52.3]} 7. c3 {[%clk 0:04:52.4]} 7... O-O {[%clk 0:04:50.5]} 8. d4 {[%clk
0:04:51.6]} 8... exd4 {[%clk 0:04:47.9]} 9. cxd4 {[%clk 0:04:51]} 9... Bb6
{[%clk 0:04:45.2]} 10. Bg5 {[%clk 0:04:50.1]} 10... d6 {[%clk 0:04:39.5]} 11.
Nc3 {[%clk 0:04:48.6]} 11... Bg4 {[%clk 0:04:38.5]} 12. Nd5 {[%clk 0:04:45.4]}
12... Bxf3 {[%clk 0:04:30.6]} 13. gxf3 {[%clk 0:04:44.3]} 13... Nxd4 {[%clk
0:04:25.9]} 14. Bxf6 {[%clk 0:04:42.7]} 14... gxf6 {[%clk 0:04:22.4]} 15. Kh1
{[%clk 0:04:41.9]} 15... Nxb3 {[%clk 0:04:07.8]} 16. axb3 {[%clk 0:04:39.1]}
16... Kh8 {[%clk 0:04:07.2]} 17. Qd2 {[%clk 0:04:36.5]} 17... Rg8 {[%clk
0:04:04.2]} 18. Qh6 {[%clk 0:04:34.6]} 18... Rg6 {[%clk 0:04:00.1]} 19. Qh4
{[%clk 0:04:33.7]} 19... Kg7 {[%clk 0:03:45.8]} 20. f4 {[%clk 0:04:32.2]} 20...
c6 {[%clk 0:03:36.2]} 21. f5 {[%clk 0:04:31.1]} 21... cxd5 {[%clk 0:03:30.8]}
22. fxg6 {[%clk 0:04:29.5]} 22... fxg6 {[%clk 0:03:30.1]} 23. exd5 {[%clk
0:04:23.8]} 23... Qg8 {[%clk 0:03:26.3]} 24. Rad1 {[%clk 0:04:20.7]} 24... Rc8
{[%clk 0:03:20.9]} 25. Qe4 {[%clk 0:04:17.9]} 25... Re8 {[%clk 0:03:14.2]} 26.
Qf4 {[%clk 0:04:13]} 26... Re5 {[%clk 0:03:05.5]} 27. Rde1 {[%clk 0:04:09.7]}
27... Qxd5+ {[%clk 0:02:57.8]} 28. f3 {[%clk 0:04:07.5]} 28... g5 {[%clk
0:02:42.8]} 29. Qg4 {[%clk 0:04:04.2]} 29... Kg6 {[%clk 0:02:36.1]} 30. h4
{[%clk 0:04:00.3]} 30... h5 {[%clk 0:02:31.3]} 31. Qg3 {[%clk 0:03:57.1]} 31...
g4 {[%clk 0:02:26.6]} 32. Kh2 {[%clk 0:03:52.2]} 32... Qd2+ {[%clk 0:02:20]} 33.
Kh1 {[%clk 0:03:42.3]} 33... Rxe1 {[%clk 0:02:14.7]} 34. Rxe1 {[%clk 0:03:41.4]}
34... Qxb2 {[%clk 0:02:04.6]} 35. fxg4 {[%clk 0:03:40.1]} 35... Bf2 {[%clk
0:01:55.4]} 36. gxh5+ {[%clk 0:03:38.6]} 36... Kxh5 {[%clk 0:01:53]} 37. Qf3+
{[%clk 0:03:33.8]} 37... Kh6 {[%clk 0:01:40.3]} 38. Qf4+ {[%clk 0:03:32.4]}
38... Kg7 {[%clk 0:01:34.4]} 39. Re7+ {[%clk 0:03:28.2]} 39... Kg6 {[%clk
0:01:32.3]} 40. Qg4+ {[%clk 0:03:26.2]} 40... Kh6 {[%clk 0:01:30.8]} 41. Qg7+
{[%clk 0:03:24.1]} 41... Kh5 {[%clk 0:01:29.6]} 42. Qh7+ {[%clk 0:03:22.6]}
42... Kg4 {[%clk 0:01:26.4]} 43. Re4+ {[%clk 0:03:21.1]} 43... Kh3 {[%clk
0:01:20]} 44. Qf5+ {[%clk 0:03:19]} 44... Kg3 {[%clk 0:01:16]} 45. Qg4# {[%clk
0:03:15.9]} 1-0

[Event "Live Chess"]
[Site "Chess.com"]
[Date "2023.05.20"]
[Round "-"]
[White "alexlines8"]
[Black "PetorPrydatko"]
[Result "1-0"]
[WhiteElo "1270"]
[BlackElo "369"]
[TimeControl "300"]
[EndTime "10:20:04 PDT"]
[Termination "alexlines8 won by checkmate"]

1. e4 {[%clk 0:04:58.3]} 1... e5 {[%clk 0:04:56.9]} 2. Nc3 {[%clk 0:04:56.4]}
2... Nc6 {[%clk 0:04:55.6]} 3. Bc4 {[%clk 0:04:54.6]} 3... d5 {[%clk 0:04:35]}
4. Bxd5 {[%clk 0:04:48.9]} 4... Nb4 {[%clk 0:04:27]} 5. Bb3 {[%clk 0:04:43.1]}
5... Bg4 {[%clk 0:04:13.3]} 6. Qxg4 {[%clk 0:04:40.6]} 6... Qd7 {[%clk
0:04:08.7]} 7. Qxd7+ {[%clk 0:04:38.9]} 7... Kxd7 {[%clk 0:04:07.6]} 8. Bxf7
{[%clk 0:04:37.9]} 8... Nf6 {[%clk 0:04:03]} 9. Nf3 {[%clk 0:04:35.7]} 9... Ke7
{[%clk 0:03:56.4]} 10. Bd5 {[%clk 0:04:31.2]} 10... Rd8 {[%clk 0:03:40.2]} 11.
Bb3 {[%clk 0:04:20.7]} 11... Ke8 {[%clk 0:03:21.9]} 12. Nxe5 {[%clk 0:04:15.2]}
12... Bd6 {[%clk 0:03:15.7]} 13. Nf7 {[%clk 0:04:11]} 13... Rf8 {[%clk
0:03:10.1]} 14. Nxd8 {[%clk 0:04:09]} 14... Kxd8 {[%clk 0:03:08]} 15. d3 {[%clk
0:04:08.5]} 15... Re8 {[%clk 0:03:03.4]} 16. O-O {[%clk 0:04:07.5]} 16... g5
{[%clk 0:02:59]} 17. Bxg5 {[%clk 0:04:06]} 17... Re5 {[%clk 0:02:50.7]} 18.
Bxf6+ {[%clk 0:04:04.7]} 18... Re7 {[%clk 0:02:48.4]} 19. Be5 {[%clk 0:04:04.6]}
19... Rxe5 {[%clk 0:02:46.7]} 20. Nd5 {[%clk 0:03:59.8]} 20... c6 {[%clk
0:02:39.5]} 21. Nxb4 {[%clk 0:03:57.6]} 21... Rb5 {[%clk 0:02:37.1]} 22. c3
{[%clk 0:03:55.6]} 22... c5 {[%clk 0:02:34.2]} 23. Nd5 {[%clk 0:03:52.2]} 23...
c4 {[%clk 0:02:32.6]} 24. dxc4 {[%clk 0:03:48.8]} 24... Rb6 {[%clk 0:02:17.4]}
25. Nxb6 {[%clk 0:03:47.4]} 25... axb6 {[%clk 0:02:15.5]} 26. Rfd1 {[%clk
0:03:47.3]} 26... b5 {[%clk 0:02:05.1]} 27. cxb5 {[%clk 0:03:45.8]} 27... b6
{[%clk 0:02:01.5]} 28. Rxd6+ {[%clk 0:03:45.2]} 28... Ke7 {[%clk 0:01:59]} 29.
Rxb6 {[%clk 0:03:45.1]} 29... Ke8 {[%clk 0:01:57.5]} 30. Rh6 {[%clk 0:03:45]}
30... Kd7 {[%clk 0:01:56.2]} 31. Rxh7+ {[%clk 0:03:44.9]} 31... Kd6 {[%clk
0:01:55.2]} 32. Rh5 {[%clk 0:03:44.8]} 32... Kd7 {[%clk 0:01:54.3]} 33. b6
{[%clk 0:03:44.7]} 33... Kd6 {[%clk 0:01:53.4]} 34. a4 {[%clk 0:03:41.6]} 34...
Ke7 {[%clk 0:01:51.4]} 35. b7 {[%clk 0:03:40.2]} 35... Kd7 {[%clk 0:01:50.3]}
36. b8=Q {[%clk 0:03:36.1]} 36... Kc6 {[%clk 0:01:48.7]} 37. Rh6+ {[%clk
0:03:34]} 37... Kc5 {[%clk 0:01:47.6]} 38. Qb5# {[%clk 0:03:32.7]} 1-0

[Event "Live Chess"]
[Site "Chess.com"]
[Date "2023.05.20"]
[Round "-"]
[White "daveeeeR"]
[Black "vinni3012"]
[Result "0-1"]
[WhiteElo "1271"]
[BlackElo "1866"]
[TimeControl "300"]
[EndTime "10:20:08 PDT"]
[Termination "vinni3012 won by resignation"]

1. d4 {[%clk 0:04:58.5]} 1... d5 {[%clk 0:04:58.6]} 2. Bf4 {[%clk 0:04:58.1]}
2... Nf6 {[%clk 0:04:50.7]} 3. Nf3 {[%clk 0:04:57.3]} 3... c5 {[%clk 0:04:41.2]}
4. e3 {[%clk 0:04:53.7]} 4... e6 {[%clk 0:04:34.2]} 5. c3 {[%clk 0:04:46.8]}
5... Nc6 {[%clk 0:04:31.7]} 6. Bb5 {[%clk 0:04:44.3]} 6... Qb6 {[%clk
0:04:29.7]} 7. Bxc6+ {[%clk 0:04:41.6]} 7... bxc6 {[%clk 0:04:24.9]} 8. Qc2
{[%clk 0:04:35.9]} 8... Ba6 {[%clk 0:04:21.7]} 9. Nbd2 {[%clk 0:04:32.6]} 9...
Be7 {[%clk 0:04:04.1]} 10. Qb3 {[%clk 0:04:08.4]} 10... O-O {[%clk 0:03:20.3]}
11. Qxb6 {[%clk 0:04:02.6]} 11... axb6 {[%clk 0:03:20.2]} 12. Bc7 {[%clk
0:03:41.7]} 12... Nd7 {[%clk 0:02:57.9]} 13. Ne5 {[%clk 0:03:33.4]} 13... Nxe5
{[%clk 0:02:51.2]} 14. dxe5 {[%clk 0:03:24.9]} 14... Ra7 {[%clk 0:02:27.7]} 15.
Bxb6 {[%clk 0:03:20]} 15... Rb7 {[%clk 0:02:26.9]} 16. Ba5 {[%clk 0:03:18.7]}
16... Rxb2 {[%clk 0:02:23.6]} 17. Bc7 {[%clk 0:03:10.7]} 17... Rc8 {[%clk
0:02:11.1]} 18. Bd6 {[%clk 0:02:58.6]} 18... Bxd6 {[%clk 0:02:10]} 19. exd6
{[%clk 0:02:56.5]} 19... Rd8 {[%clk 0:01:59.8]} 20. a3 {[%clk 0:02:46.5]} 20...
Kf8 {[%clk 0:01:57.1]} 21. Rb1 {[%clk 0:02:44.9]} 21... Rdb8 {[%clk 0:01:53]}
22. f4 {[%clk 0:02:34.3]} 22... Rxb1+ {[%clk 0:01:48]} 23. Nxb1 {[%clk
0:02:32.4]} 23... Rxb1+ {[%clk 0:01:47.9]} 0-1

[Event "Live Chess"]
[Site "Chess.com"]
[Date "2023.05.20"]
[Round "-"]
[White "stevefairhurst"]
[Black "SavagePawn7"]
[Result "1-0"]
[WhiteElo "557"]
[BlackElo "763"]
[TimeControl "300"]
[EndTime "10:20:11 PDT"]
[Termination "stevefairhurst won by checkmate"]

1. e4 {[%clk 0:04:59.4]} 1... e5 {[%clk 0:04:58.3]} 2. Bd3 {[%clk 0:04:58.3]}
2... Bc5 {[%clk 0:04:55.3]} 3. f3 {[%clk 0:04:54.4]} 3... Nf6 {[%clk 0:04:53.8]}
4. Nh3 {[%clk 0:04:53.4]} 4... d5 {[%clk 0:04:51.4]} 5. Ng5 {[%clk 0:04:49.7]}
5... dxe4 {[%clk 0:04:46]} 6. Bc4 {[%clk 0:04:48.4]} 6... Nd5 {[%clk 0:04:38.4]}
7. fxe4 {[%clk 0:04:43.2]} 7... Qxg5 {[%clk 0:04:17.6]} 8. d4 {[%clk 0:04:40.1]}
8... Bxd4 {[%clk 0:04:12]} 9. Bxg5 {[%clk 0:04:37.2]} 9... Ne3 {[%clk
0:04:00.3]} 10. Qe2 {[%clk 0:04:20.8]} 10... Bxb2 {[%clk 0:03:49.4]} 11. Qxe3
{[%clk 0:04:08.3]} 11... Bxa1 {[%clk 0:03:47.6]} 12. Qc5 {[%clk 0:03:54.5]}
12... Nd7 {[%clk 0:03:32.5]} 13. Qe7# {[%clk 0:03:46.2]} 1-0

[Event "Live Chess"]
[Site "Chess.com"]
[Date "2023.05.20"]
[Round "-"]
[White "Singapourfeuj"]
[Black "mattihelenius2"]
[Result "1-0"]
[WhiteElo "2248"]
[BlackElo "445"]
[TimeControl "300"]
[EndTime "10:20:16 PDT"]
[Termination "Singapourfeuj won by resignation"]

1. d4 {[%clk 0:04:59.2]} 1... e6 {[%clk 0:04:55.9]} 2. Nf3 {[%clk 0:04:58.4]}
2... f5 {[%clk 0:04:54.5]} 3. Nc3 {[%clk 0:04:56.4]} 3... Nf6 {[%clk 0:04:51.1]}
4. Bg5 {[%clk 0:04:54.4]} 4... Be7 {[%clk 0:04:47.7]} 5. Bxf6 {[%clk 0:04:53.6]}
5... Bxf6 {[%clk 0:04:45.6]} 6. e4 {[%clk 0:04:53]} 6... g6 {[%clk 0:04:31.8]}
7. exf5 {[%clk 0:04:51.1]} 7... gxf5 {[%clk 0:04:26.3]} 8. Ne5 {[%clk
0:04:48.8]} 8... Qe7 {[%clk 0:04:16.6]} 9. Qh5+ {[%clk 0:04:47.3]} 9... Kf8
{[%clk 0:04:07.7]} 10. O-O-O {[%clk 0:04:44.7]} 10... Bxe5 {[%clk 0:04:04]} 11.
dxe5 {[%clk 0:04:43.5]} 11... Nc6 {[%clk 0:04:01.4]} 12. f4 {[%clk 0:04:42.3]}
12... b6 {[%clk 0:03:57.1]} 13. g4 {[%clk 0:04:40.6]} 13... Rg8 {[%clk
0:03:45.2]} 14. gxf5 {[%clk 0:04:38.9]} 14... exf5 {[%clk 0:03:43.7]} 15. Bc4
{[%clk 0:04:37]} 15... Rg7 {[%clk 0:03:32.1]} 16. Qxf5+ {[%clk 0:04:35.2]} 16...
Ke8 {[%clk 0:03:29.8]} 17. Nd5 {[%clk 0:04:34.2]} 17... Qe6 {[%clk 0:03:24.6]}
18. Nxc7+ {[%clk 0:04:32.6]} 18... Ke7 {[%clk 0:03:20.7]} 19. Nxe6 {[%clk
0:04:31.4]} 19... dxe6 {[%clk 0:03:19.2]} 20. Qf6+ {[%clk 0:04:30.6]} 20... Ke8
{[%clk 0:03:14.9]} 21. Bb5 {[%clk 0:04:29.5]} 1-0

[Event "Live Chess"]
[Site "Chess.com"]
[Date "2023.05.20"]
[Round "-"]
[White "Doge_Dandolo"]
[Black "Pandreq"]
[Result "1-0"]
[WhiteElo "2133"]
[BlackElo "1259"]
[TimeControl "300"]
[EndTime "10:20:20 PDT"]
[Termination "Doge_Dandolo won on time"]

1. Nf3 {[%clk 0:04:58]} 1... Nf6 {[%clk 0:04:58.2]} 2. c4 {[%clk 0:04:57]} 2...
g6 {[%clk 0:04:55.3]} 3. Nc3 {[%clk 0:04:55.7]} 3... Bg7 {[%clk 0:04:54.5]} 4.
e4 {[%clk 0:04:54.7]} 4... d6 {[%clk 0:04:49.2]} 5. d4 {[%clk 0:04:53.6]} 5...
O-O {[%clk 0:04:42]} 6. Be2 {[%clk 0:04:52.5]} 6... Nc6 {[%clk 0:04:37.5]} 7. d5
{[%clk 0:04:50.4]} 7... Nb4 {[%clk 0:04:32.5]} 8. O-O {[%clk 0:04:45.3]} 8...
Na6 {[%clk 0:04:29.4]} 9. h3 {[%clk 0:04:40]} 9... Nc5 {[%clk 0:04:28.1]} 10.
Qc2 {[%clk 0:04:37.8]} 10... Bd7 {[%clk 0:04:23.9]} 11. b4 {[%clk 0:04:32.8]}
11... Na6 {[%clk 0:04:17.3]} 12. Rb1 {[%clk 0:04:31]} 12... Qc8 {[%clk
0:04:05.2]} 13. Qd3 {[%clk 0:04:21.3]} 13... Bxh3 {[%clk 0:03:50.2]} 14. gxh3
{[%clk 0:04:18.6]} 14... Qxh3 {[%clk 0:03:50.1]} 15. Ne1 {[%clk 0:04:13.6]}
15... Qd7 {[%clk 0:03:27.8]} 16. Bd2 {[%clk 0:04:00.4]} 16... c6 {[%clk
0:03:22]} 17. Ng2 {[%clk 0:03:55.5]} 17... cxd5 {[%clk 0:03:19.7]} 18. Nxd5
{[%clk 0:03:47.8]} 18... Nxd5 {[%clk 0:03:06.5]} 19. cxd5 {[%clk 0:03:44.2]}
19... Rac8 {[%clk 0:02:59.8]} 20. Rfc1 {[%clk 0:03:34.5]} 20... Rc7 {[%clk
0:02:42.9]} 21. Rxc7 {[%clk 0:03:32]} 21... Qxc7 {[%clk 0:02:42.8]} 22. Rc1
{[%clk 0:03:30.6]} 22... Qd7 {[%clk 0:02:41.2]} 23. Qc2 {[%clk 0:03:24.2]} 23...
b5 {[%clk 0:02:20.4]} 24. Qc6 {[%clk 0:03:16.6]} 24... Qxc6 {[%clk 0:02:01.6]}
25. Rxc6 {[%clk 0:03:11.1]} 25... Nb8 {[%clk 0:01:58.7]} 26. Rc7 {[%clk
0:03:02.8]} 26... a6 {[%clk 0:01:48.7]} 27. Ne1 {[%clk 0:02:55]} 27... e6 {[%clk
0:01:40.4]} 28. dxe6 {[%clk 0:02:49.2]} 28... fxe6 {[%clk 0:01:38.9]} 29. Bg4
{[%clk 0:02:43.6]} 29... Re8 {[%clk 0:00:58.4]} 30. Nd3 {[%clk 0:02:28]} 30...
h5 {[%clk 0:00:53.8]} 31. Bh3 {[%clk 0:02:25.1]} 31... d5 {[%clk 0:00:38.9]} 32.
exd5 {[%clk 0:02:17.1]} 32... exd5 {[%clk 0:00:37.8]} 33. Bg2 {[%clk 0:02:06.2]}
33... Re2 {[%clk 0:00:15.5]} 34. Bxd5+ {[%clk 0:01:58.5]} 34... Kh8 {[%clk
0:00:15]} 35. Bf4 {[%clk 0:01:47.4]} 35... Rxa2 {[%clk 0:00:11.4]} 36. Rc8+
{[%clk 0:01:43.3]} 36... Kh7 {[%clk 0:00:09.6]} 37. Bg8+ {[%clk 0:01:40.7]}
37... Kh8 {[%clk 0:00:05.2]} 38. Bxa2+ {[%clk 0:01:40.3]} 1-0

[Event "Live Chess"]
[Site "Chess.com"]
[Date "2023.05.20"]
[Round "-"]
[White "HoarseyHorsey"]
[Black "flyingpuffins"]
[Result "0-1"]
[WhiteElo "1386"]
[BlackElo "1963"]
[TimeControl "300"]
[EndTime "10:20:20 PDT"]
[Termination "flyingpuffins won by resignation"]

1. d4 {[%clk 0:04:57.8]} 1... d5 {[%clk 0:04:58.6]} 2. c4 {[%clk 0:04:56.5]}
2... c6 {[%clk 0:04:57.4]} 3. cxd5 {[%clk 0:04:55.6]} 3... cxd5 {[%clk 0:04:56]}
4. Bf4 {[%clk 0:04:54.8]} 4... Nf6 {[%clk 0:04:54.8]} 5. e3 {[%clk 0:04:53.8]}
5... Nc6 {[%clk 0:04:53.9]} 6. Nf3 {[%clk 0:04:52.8]} 6... Bg4 {[%clk
0:04:50.1]} 7. Nc3 {[%clk 0:04:50.9]} 7... a6 {[%clk 0:04:48.6]} 8. Bd3 {[%clk
0:04:47.2]} 8... e6 {[%clk 0:04:47.4]} 9. h3 {[%clk 0:04:41.8]} 9... Bh5 {[%clk
0:04:46.1]} 10. a3 {[%clk 0:04:20.7]} 10... Bd6 {[%clk 0:04:19.5]} 11. Bxd6
{[%clk 0:04:16.2]} 11... Qxd6 {[%clk 0:04:19.4]} 12. g4 {[%clk 0:04:07.2]} 12...
Bg6 {[%clk 0:03:54.7]} 13. Bxg6 {[%clk 0:04:05.7]} 13... hxg6 {[%clk 0:03:54.6]}
14. Qd3 {[%clk 0:03:51.9]} 14... Na5 {[%clk 0:03:40]} 15. Ne5 {[%clk 0:03:33.2]}
15... Nd7 {[%clk 0:03:28.7]} 16. f4 {[%clk 0:02:31.7]} 16... Nxe5 {[%clk
0:03:23.6]} 17. dxe5 {[%clk 0:02:29.5]} 17... Qb6 {[%clk 0:03:19]} 18. Rb1
{[%clk 0:02:23.9]} 18... Nc4 {[%clk 0:03:17.6]} 19. b4 {[%clk 0:02:12.3]} 19...
Qxe3+ {[%clk 0:03:11.6]} 20. Qxe3 {[%clk 0:02:10.4]} 20... Nxe3 {[%clk
0:03:11.5]} 21. Ke2 {[%clk 0:02:06.3]} 21... Nc4 {[%clk 0:03:02]} 22. Rb3 {[%clk
0:02:03.7]} 22... Ke7 {[%clk 0:02:58.5]} 23. Na4 {[%clk 0:02:02.6]} 23... Rh4
{[%clk 0:02:54.4]} 24. Kf2 {[%clk 0:01:36.8]} 24... b6 {[%clk 0:02:50.8]} 25.
Kg3 {[%clk 0:01:34.8]} 25... Rah8 {[%clk 0:02:40.7]} 26. Nb2 {[%clk 0:01:28.2]}
26... Nd2 {[%clk 0:02:38.5]} 27. Rc3 {[%clk 0:01:23.5]} 27... Ne4+ {[%clk
0:02:37.7]} 0-1

[Event "Live Chess"]
[Site "Chess.com"]
[Date "2023.05.20"]
[Round "-"]
[White "JoshMcK"]
[Black "Hacker_2009"]
[Result "0-1"]
[WhiteElo "1541"]
[BlackElo "1915"]
[TimeControl "300"]
[EndTime "10:20:29 PDT"]
[Termination "Hacker_2009 won by resignation"]

1. e4 {[%clk 0:04:59.1]} 1... c5 {[%clk 0:04:58.6]} 2. c3 {[%clk 0:04:57.6]}
2... d6 {[%clk 0:04:57.6]} 3. d4 {[%clk 0:04:55.7]} 3... cxd4 {[%clk 0:04:57.2]}
4. cxd4 {[%clk 0:04:55.6]} 4... Nf6 {[%clk 0:04:56.7]} 5. Nc3 {[%clk 0:04:51.2]}
5... e6 {[%clk 0:04:56]} 6. Nf3 {[%clk 0:04:49.2]} 6... Be7 {[%clk 0:04:55.4]}
7. Bb5+ {[%clk 0:04:48.3]} 7... Bd7 {[%clk 0:04:54]} 8. Bxd7+ {[%clk 0:04:47]}
8... Qxd7 {[%clk 0:04:53.9]} 9. O-O {[%clk 0:04:45.9]} 9... O-O {[%clk
0:04:53.1]} 10. e5 {[%clk 0:04:45.1]} 10... dxe5 {[%clk 0:04:51.9]} 11. dxe5
{[%clk 0:04:44.4]} 11... Nd5 {[%clk 0:04:48]} 12. Nxd5 {[%clk 0:04:42.8]} 12...
exd5 {[%clk 0:04:46.7]} 13. Bd2 {[%clk 0:04:32]} 13... Nc6 {[%clk 0:04:45.4]}
14. Bc3 {[%clk 0:04:31]} 14... Rfd8 {[%clk 0:04:41]} 15. Nd4 {[%clk 0:04:30.1]}
15... Nxe5 {[%clk 0:04:38.8]} 16. Re1 {[%clk 0:04:16]} 16... Bf6 {[%clk
0:04:36.8]} 17. Rxe5 {[%clk 0:04:02.1]} 17... Bxe5 {[%clk 0:04:33.5]} 18. Qf3
{[%clk 0:03:55.5]} 18... Re8 {[%clk 0:04:28.5]} 19. g3 {[%clk 0:03:46.9]} 19...
Bf6 {[%clk 0:04:22]} 20. Rd1 {[%clk 0:03:37.2]} 20... Qa4 {[%clk 0:04:18.5]} 21.
Qxd5 {[%clk 0:03:28.2]} 21... Qxd1+ {[%clk 0:04:17.2]} 0-1

[Event "Live Chess"]
[Site "Chess.com"]
[Date "2023.05.20"]
[Round "-"]
[White "Ferrarifan27"]
[Black "Kr1xot4_XGOD"]
[Result "0-1"]
[WhiteElo "2092"]
[BlackElo "2189"]
[TimeControl "300"]
[EndTime "10:20:30 PDT"]
[Termination "Kr1xot4_XGOD won by checkmate"]

1. e4 {[%clk 0:04:58.7]} 1... c5 {[%clk 0:04:58.3]} 2. Nf3 {[%clk 0:04:57.2]}
2... e6 {[%clk 0:04:55.4]} 3. d4 {[%clk 0:04:54.7]} 3... cxd4 {[%clk 0:04:52]}
4. Nxd4 {[%clk 0:04:52]} 4... Nf6 {[%clk 0:04:47.4]} 5. Nc3 {[%clk 0:04:47.9]}
5... Nc6 {[%clk 0:04:39.9]} 6. Be3 {[%clk 0:04:45]} 6... Bb4 {[%clk 0:04:35.4]}
7. Bd3 {[%clk 0:04:42.1]} 7... e5 {[%clk 0:04:32.5]} 8. Nf5 {[%clk 0:04:40]}
8... g6 {[%clk 0:04:30.2]} 9. Ng7+ {[%clk 0:04:30.5]} 9... Kf8 {[%clk
0:04:27.3]} 10. Bh6 {[%clk 0:04:28.2]} 10... Kg8 {[%clk 0:04:24.7]} 11. O-O
{[%clk 0:04:26.4]} 11... Bf8 {[%clk 0:04:20.1]} 12. Nf5 {[%clk 0:04:14.7]} 12...
gxf5 {[%clk 0:04:17.2]} 13. Bxf8 {[%clk 0:04:13.8]} 13... Kxf8 {[%clk
0:04:07.6]} 14. exf5 {[%clk 0:04:10.3]} 14... d5 {[%clk 0:04:04.5]} 15. Qd2
{[%clk 0:04:01.4]} 15... h5 {[%clk 0:04:00.7]} 16. Qg5 {[%clk 0:03:53.4]} 16...
h4 {[%clk 0:03:57.2]} 17. h3 {[%clk 0:03:51.2]} 17... Rh5 {[%clk 0:03:53.5]} 18.
Qd2 {[%clk 0:03:45.9]} 18... d4 {[%clk 0:03:48.5]} 19. Nb5 {[%clk 0:03:28.3]}
19... Bxf5 {[%clk 0:03:38.6]} 20. Bxf5 {[%clk 0:03:25.9]} 20... Rxf5 {[%clk
0:03:37.1]} 21. Qh6+ {[%clk 0:03:24.1]} 21... Ke7 {[%clk 0:03:33.7]} 22. Qxh4
{[%clk 0:03:19.3]} 22... a6 {[%clk 0:03:32.5]} 23. Na3 {[%clk 0:03:17.2]} 23...
Qd5 {[%clk 0:03:28.7]} 24. Rfe1 {[%clk 0:03:13.7]} 24... Rh5 {[%clk 0:03:23.1]}
25. Qg3 {[%clk 0:03:10.1]} 25... Rg8 {[%clk 0:03:19.1]} 26. Qh2 {[%clk
0:03:09.2]} 26... Ng4 {[%clk 0:03:16.2]} 27. Qg3 {[%clk 0:03:03.7]} 27... Nf6
{[%clk 0:03:05.7]} 28. Qh2 {[%clk 0:03:00.8]} 28... Ng4 {[%clk 0:03:02.2]} 29.
Qg3 {[%clk 0:02:59]} 29... Rhg5 {[%clk 0:02:59]} 30. c4 {[%clk 0:02:29.4]} 30...
dxc3 {[%clk 0:02:46.3]} 31. Rad1 {[%clk 0:02:25.8]} 31... Nd4 {[%clk 0:02:42.7]}
32. hxg4 {[%clk 0:02:07.4]} 32... Ne2+ {[%clk 0:02:30.3]} 33. Kh2 {[%clk
0:01:38.5]} 33... Rh8+ {[%clk 0:02:24.3]} 34. Qh3 {[%clk 0:01:36.6]} 34... Rxh3+
{[%clk 0:02:14.8]} 35. gxh3 {[%clk 0:01:35.6]} 35... Qe4 {[%clk 0:02:05.4]} 36.
bxc3 {[%clk 0:01:29.3]} 36... Rxg4 {[%clk 0:01:59.4]} 37. hxg4 {[%clk
0:01:25.6]} 37... Qf4+ {[%clk 0:01:58.2]} 38. Kg2 {[%clk 0:01:21.7]} 38... Qxg4+
{[%clk 0:01:52.7]} 39. Kf1 {[%clk 0:01:20.5]} 39... Qf3 {[%clk 0:01:50.4]} 40.
Rxe2 {[%clk 0:01:18.2]} 40... Qh1# {[%clk 0:01:46.9]} 0-1